fUSD/lending_fUSD_20260517
["ID","MTS","AMOUNT","RATE_DAILY","PERIOD"]
[422479602,1778987439000,-500.0,0.00017808,2]
[422479603,1778987439000,-500.0,0.00017808,2]
[422479589,1778987439000,-550.10401495,0.00017808,2]
[422479587,1778987439000,-500.0,0.00017808,2]
[422479604,1778987439000,-500.0,0.00017808,2]
[422479599,1778987439000,-500.0,0.00017808,2]
[422479601,1778987439000,-245.0,0.00017808,2]
[422479594,1778987439000,-500.0,0.00017808,2]
[422479592,1778987439000,-500.0,0.00017808,2]
[422479606,1778987439000,-500.0,0.00017808,2]
[422479644,1778987439000,-150.0,0.00020012,2]
[422479691,1778987439000,-1575.83,0.00022466,2]
[422479640,1778987439000,-5121.03910037,0.0002,2]
[422479674,1778987439000,-289.1877375,0.00021918,3]
[422479684,1778987439000,-200.952461,0.00022148,14]
[422479681,1778987439000,-245.33,0.00022022,2]
[422479683,1778987439000,-222.828829,0.00022148,14]
[422479679,1778987439000,-813.13523417,0.00022,7]
[422479678,1778987439000,-152.0,0.00022,2]
[422479675,1778987439000,-5000.0,0.00021918,2]
[422479680,1778987439000,-14565.72596391,0.00022002,2]
[422479677,1778987439000,-156.0,0.00022,2]
[422479685,1778987439000,-500.0,0.00022274,2]
[422479687,1778987439000,-713.7,0.00022353,2]
[422479686,1778987439000,-200.0,0.0002233,2]
[422479689,1778987439000,-553.1070535,0.000224,2]
[422479690,1778987439000,-1756.73,0.00022466,2]
[422479688,1778987439000,-190.30659137,0.00022353,2]
[422479695,1778987439000,-500.0,0.00022647,2]
[422479692,1778987439000,-415.07,0.0002251,2]
[422479694,1778987439000,-31364.50553078,0.000226,2]
[422479693,1778987439000,-161.71,0.00022547,2]
[422479696,1778987439000,-194.04175838,0.00022701,3]
[422479702,1778987439000,-975.85,0.000229,7]
[422479698,1778987439000,-490.35,0.00022742,2]
[422479699,1778987439000,-267.0,0.00022788,2]
[422479697,1778987439000,-150.0,0.00022715,2]
[422479703,1778987439000,-2900.0,0.000229,8]
[422479700,1778987439000,-1151.82071657,0.00022831,2]
[422479645,1778987439000,-500.0,0.00020023,2]
[422479704,1778987439000,-1594.1,0.00022962,2]
[422479705,1778987439000,-500.0,0.00022999,2]
[422479676,1778987439000,-1151.82071657,0.00021918,2]
[422479682,1778987439000,-6073.71,0.00022077,2]
[422479701,1778987439000,-505.09,0.00022864,2]
[422479666,1778987439000,-225.15420585,0.000215,2]
[422479670,1778987439000,-150.55876349,0.00021501,15]
[422479639,1778987439000,-572.42558893,0.0002,2]
[422479641,1778987439000,-1070.91454337,0.0002,2]
[422479642,1778987439000,-720.0,0.0002,2]
[422479646,1778987439000,-219.99,0.00020088,2]
[422479648,1778987439000,-14248.43,0.00020247,2]
[422479659,1778987439000,-160.0,0.00021,7]
[422479658,1778987439000,-152.0,0.00020987,2]
[422479647,1778987439000,-271.25,0.00020088,2]
[422479650,1778987439000,-31364.50553078,0.000204,2]
[422479656,1778987439000,-2000.0,0.0002073,2]
[422479651,1778987439000,-3842.85,0.00020548,2]
[422479652,1778987439000,-3842.85,0.00020548,2]
[422479649,1778987439000,-713.7,0.00020381,2]
[422479653,1778987439000,-3842.85,0.00020548,2]
[422479643,1778987439000,-824.0,0.0002,2]
[422479657,1778987439000,-245.33,0.00020921,2]
[422479667,1778987439000,-177.4,0.000215,2]
[422479654,1778987439000,-3842.83,0.00020548,2]
[422479668,1778987439000,-31364.50553078,0.000215,2]
[422479665,1778987439000,-300.0,0.00021499,2]
[422479673,1778987439000,-500.0,0.0002184,2]
[422479671,1778987439000,-4609.0,0.0002155,2]
[422479672,1778987439000,-303.06368554,0.00021562,2]
[422479669,1778987439000,-975.85,0.000215,2]
[422479664,1778987439000,-2129.0,0.00021484,2]
[422479662,1778987439000,-1000.0,0.00021376,2]
[422479663,1778987439000,-19034.97,0.00021458,2]
[422479660,1778987439000,-525.27670665,0.00021,2]
[422479655,1778987439000,-14565.72596391,0.00020582,2]
[422479661,1778987439000,-17553.01377034,0.00021214,2]
[422479735,1778987440000,-274.23269416,0.00023386,2]
[422479749,1778987440000,-151.0,0.00023386,2]
[422479748,1778987440000,-151.0,0.00023386,2]
[422479760,1778987440000,-2000.0,0.00023504,2]
[422479758,1778987440000,-2000.0,0.00023504,2]
[422479742,1778987440000,-151.0,0.00023386,2]
[422479740,1778987440000,-151.0,0.00023386,2]
[422479737,1778987440000,-151.0,0.00023386,2]
[422479739,1778987440000,-151.0,0.00023386,2]
[422479741,1778987440000,-151.0,0.00023386,2]
[422479747,1778987440000,-151.0,0.00023386,2]
[422479759,1778987440000,-2000.0,0.00023504,2]
[422479734,1778987440000,-151.0,0.00023386,2]
[422479756,1778987440000,-2000.0,0.00023504,2]
[422479752,1778987440000,-2000.0,0.00023504,2]
[422479753,1778987440000,-2000.0,0.00023504,2]
[422479755,1778987440000,-2000.0,0.00023504,2]
[422479757,1778987440000,-2000.0,0.00023504,2]
[422479754,1778987440000,-2000.0,0.00023504,2]
[422479768,1778987440000,-6453.0,0.00023705,2]
[422479763,1778987440000,-171.86,0.00023684,2]
[422479765,1778987440000,-161.39989205,0.00023684,2]
[422479764,1778987440000,-171.86,0.00023684,2]
[422479767,1778987440000,-31364.50553078,0.000237,2]
[422479766,1778987440000,-171.86,0.0002369,2]
[422479732,1778987440000,-151.0,0.00023386,2]
[422479769,1778987440000,-171.86,0.00023718,2]
[422479751,1778987440000,-2080.17592889,0.00023386,2]
[422479744,1778987440000,-151.0,0.00023386,2]
[422479730,1778987440000,-151.0,0.00023386,2]
[422479745,1778987440000,-151.0,0.00023386,2]
[422479771,1778987440000,-171.86,0.0002375,2]
[422479707,1778987440000,-648.55480983,0.00023,7]
[422479706,1778987440000,-152.0,0.00023,2]
[422479719,1778987440000,-151.0,0.00023386,2]
[422479709,1778987440000,-600.0,0.00023085,2]
[422479708,1778987440000,-1869.0,0.00023,2]
[422479712,1778987440000,-172.02087918,0.00023155,3]
[422479716,1778987440000,-366.3609505,0.00023233,2]
[422479710,1778987440000,-245.33,0.00023123,2]
[422479715,1778987440000,-321.79368421,0.00023229,2]
[422479713,1778987440000,-166.66,0.00023177,2]
[422479718,1778987440000,-151.0,0.00023386,2]
[422479711,1778987440000,-2749.0,0.00023123,2]
[422479746,1778987440000,-151.0,0.00023386,2]
[422479714,1778987440000,-1406.87099074,0.00023192,2]
[422479727,1778987440000,-151.0,0.00023386,2]
[422479726,1778987440000,-151.0,0.00023386,2]
[422479721,1778987440000,-151.0,0.00023386,2]
[422479724,1778987440000,-151.0,0.00023386,2]
[422479722,1778987440000,-151.0,0.00023386,2]
[422479728,1778987440000,-151.0,0.00023386,2]
[422479731,1778987440000,-151.0,0.00023386,2]
[422479720,1778987440000,-151.0,0.00023386,2]
[422479723,1778987440000,-151.0,0.00023386,2]
[422479725,1778987440000,-151.0,0.00023386,2]
[422479729,1778987440000,-151.0,0.00023386,2]
[422479743,1778987440000,-151.0,0.00023386,2]
[422479733,1778987440000,-151.0,0.00023386,2]
[422479717,1778987440000,-272.06,0.00023283,2]
[422479770,1778987440000,-1151.82071657,0.00023744,2]
[422479820,1778987440000,-500.0,0.00024079,2]
[422479773,1778987440000,-151.95830308,0.000239,21]
[422479804,1778987440000,-500.0,0.00024079,2]
[422479807,1778987440000,-500.0,0.00024079,2]
[422479806,1778987440000,-500.0,0.00024079,2]
[422479808,1778987440000,-505.8622315,0.00024079,2]
[422479810,1778987440000,-500.0,0.00024079,2]
[422479809,1778987440000,-500.0,0.00024079,2]
[422479811,1778987440000,-500.0,0.00024079,2]
[422479822,1778987440000,-500.0,0.00024079,2]
[422479812,1778987440000,-500.0,0.00024079,2]
[422479817,1778987440000,-500.0,0.00024079,2]
[422479814,1778987440000,-500.0,0.00024079,2]
[422479815,1778987440000,-500.0,0.00024079,2]
[422479818,1778987440000,-512.70710012,0.00024079,2]
[422479805,1778987440000,-500.0,0.00024079,2]
[422479816,1778987440000,-500.0,0.00024079,2]
[422479819,1778987440000,-500.0,0.00024079,2]
[422479821,1778987440000,-500.0,0.00024079,2]
[422479824,1778987440000,-505.1114487,0.00024079,2]
[422479827,1778987440000,-500.0,0.00024079,2]
[422479826,1778987440000,-500.0,0.00024079,2]
[422479825,1778987440000,-501.91072122,0.00024079,2]
[422479823,1778987440000,-502.6269472,0.00024079,2]
[422479828,1778987440000,-500.0,0.00024079,2]
[422479833,1778987440000,-500.0,0.00024079,2]
[422479831,1778987440000,-500.0,0.00024079,2]
[422479829,1778987440000,-500.0,0.00024079,2]
[422479830,1778987440000,-500.0,0.00024079,2]
[422479832,1778987440000,-500.0,0.00024079,2]
[422479813,1778987440000,-506.38825692,0.00024079,2]
[422479799,1778987440000,-502.69293018,0.00024079,2]
[422479762,1778987440000,-2000.0,0.00023504,2]
[422479800,1778987440000,-500.0,0.00024079,2]
[422479802,1778987440000,-500.0,0.00024079,2]
[422479772,1778987440000,-272.06,0.00023866,2]
[422479785,1778987440000,-151.0,0.00024077,7]
[422479775,1778987440000,-2157.14243826,0.00023934,2]
[422479774,1778987440000,-3700.0,0.000239,8]
[422479776,1778987440000,-166.66,0.00023942,2]
[422479779,1778987440000,-151.0,0.00023997,7]
[422479777,1778987440000,-31483.46,0.0002398,2]
[422479780,1778987440000,-152.0,0.00024,2]
[422479781,1778987440000,-364.0,0.00024077,7]
[422479783,1778987440000,-151.0,0.00024077,7]
[422479784,1778987440000,-154.94529614,0.00024077,7]
[422479782,1778987440000,-151.0,0.00024077,7]
[422479787,1778987440000,-151.0,0.00024077,7]
[422479778,1778987440000,-2500.0,0.0002398,2]
[422479788,1778987440000,-151.0,0.00024077,7]
[422479786,1778987440000,-151.0,0.00024077,7]
[422479803,1778987440000,-506.10311636,0.00024079,2]
[422479798,1778987440000,-504.31823743,0.00024079,2]
[422479794,1778987440000,-500.0,0.00024079,2]
[422479791,1778987440000,-151.0,0.00024077,7]
[422479793,1778987440000,-164.41440023,0.00024079,2]
[422479790,1778987440000,-151.0,0.00024077,7]
[422479801,1778987440000,-500.0,0.00024079,2]
[422479796,1778987440000,-513.69888162,0.00024079,2]
[422479795,1778987440000,-500.0,0.00024079,2]
[422479792,1778987440000,-151.0,0.00024077,7]
[422479789,1778987440000,-151.0,0.00024077,7]
[422479797,1778987440000,-509.9741162,0.00024079,2]
[422479872,1778987441000,-160.0,0.00024524,2]
[422479880,1778987441000,-561.41,0.00024658,2]
[422479876,1778987441000,-150.0,0.00024633,4]
[422479874,1778987441000,-150.0,0.00024592,4]
[422479875,1778987441000,-150.0,0.00024626,4]
[422479869,1778987441000,-150.0,0.00024523,4]
[422479871,1778987441000,-215.0785988,0.00024524,2]
[422479870,1778987441000,-208.48490792,0.00024524,2]
[422479877,1778987441000,-150.0,0.00024633,4]
[422479867,1778987441000,-150.0,0.00024509,4]
[422479892,1778987441000,-31364.50553078,0.000248,2]
[422479873,1778987441000,-150.0,0.00024558,4]
[422479890,1778987441000,-150.0,0.00024773,4]
[422479896,1778987441000,-150.0,0.00024879,4]
[422479881,1778987441000,-1151.82071657,0.00024658,2]
[422479891,1778987441000,-150.0,0.00024798,4]
[422479882,1778987441000,-150.0,0.00024661,4]
[422479886,1778987441000,-150.0,0.00024729,4]
[422479887,1778987441000,-150.0,0.00024756,4]
[422479883,1778987441000,-150.0,0.00024687,4]
[422479885,1778987441000,-166.66,0.00024707,2]
[422479884,1778987441000,-150.0,0.00024695,4]
[422479889,1778987441000,-150.0,0.00024764,4]
[422479888,1778987441000,-150.0,0.00024756,4]
[422479895,1778987441000,-150.0,0.00024866,4]
[422479894,1778987441000,-150.0,0.00024843,4]
[422479893,1778987441000,-150.0,0.00024832,4]
[422479878,1778987441000,-150.0,0.00024633,4]
[422479879,1778987441000,-1000.0,0.00024658,2]
[422479868,1778987441000,-150.0,0.00024509,4]
[422479851,1778987441000,-713.7,0.00024324,2]
[422479863,1778987441000,-150.0,0.00024455,4]
[422479835,1778987441000,-500.0,0.00024079,2]
[422479902,1778987441000,-179.60300009,0.000249,2]
[422479836,1778987441000,-500.0,0.00024079,2]
[422479849,1778987441000,-975.85,0.000243,7]
[422479844,1778987441000,-2983.8,0.00024174,2]
[422479848,1778987441000,-600.0,0.00024252,2]
[422479838,1778987441000,-303.73329775,0.00024079,2]
[422479843,1778987441000,-1353.47,0.00024174,2]
[422479842,1778987441000,-389.77,0.00024174,2]
[422479839,1778987441000,-300.0,0.00024079,2]
[422479840,1778987441000,-300.0,0.00024079,2]
[422479846,1778987441000,-245.33,0.00024224,2]
[422479850,1778987441000,-549.0,0.00024301,2]
[422479837,1778987441000,-500.0,0.00024079,2]
[422479841,1778987441000,-4986.06,0.00024174,2]
[422479847,1778987441000,-617.34,0.00024231,2]
[422479845,1778987441000,-3753.96495443,0.0002421,2]
[422479861,1778987441000,-150.0,0.00024421,4]
[422479858,1778987441000,-150.0,0.00024386,2]
[422479855,1778987441000,-150.0,0.00024386,2]
[422479854,1778987441000,-150.0,0.00024386,2]
[422479853,1778987441000,-150.0,0.00024386,2]
[422479859,1778987441000,-150.0,0.00024386,2]
[422479857,1778987441000,-150.0,0.00024386,2]
[422479856,1778987441000,-150.0,0.00024386,2]
[422479864,1778987441000,-1656.90656387,0.00024482,2]
[422479865,1778987441000,-150.0,0.00024489,4]
[422479862,1778987441000,-272.06,0.00024448,2]
[422479852,1778987441000,-17553.01377034,0.00024371,2]
[422479866,1778987441000,-231.21047124,0.000245,2]
[422479834,1778987441000,-500.0,0.00024079,2]
[422479899,1778987441000,-500.8620181,0.00024899,2]
[422479905,1778987441000,-195.443125,0.000249,2]
[422479944,1778987441000,-151.0,0.00025,2]
[422479931,1778987441000,-56617.88213438,0.00025,7]
[422479936,1778987441000,-167.528222,0.00025,2]
[422479941,1778987441000,-151.0,0.00025,2]
[422479934,1778987441000,-1585514.55745356,0.00025,2]
[422479937,1778987441000,-167.528222,0.00025,2]
[422479933,1778987441000,-2279.78960302,0.00025,2]
[422479935,1778987441000,-167.528222,0.00025,2]
[422479938,1778987441000,-167.528222,0.00025,2]
[422479940,1778987441000,-1404.23803,0.00025,2]
[422479939,1778987441000,-1404.23803,0.00025,2]
[422479945,1778987441000,-151.0,0.00025,2]
[422479951,1778987441000,-151.0,0.00025,2]
[422479953,1778987441000,-500.0,0.00025,2]
[422479949,1778987441000,-261.245373,0.00025,2]
[422479947,1778987441000,-261.245373,0.00025,2]
[422479948,1778987441000,-261.245373,0.00025,2]
[422479946,1778987441000,-163.7787404,0.00025,2]
[422479950,1778987441000,-261.245373,0.00025,2]
[422479955,1778987441000,-500.0,0.00025,2]
[422479952,1778987441000,-500.0,0.00025,2]
[422479954,1778987441000,-500.0,0.00025,2]
[422479961,1778987441000,-500.0,0.00025,2]
[422479957,1778987441000,-500.0,0.00025,2]
[422479960,1778987441000,-500.0,0.00025,2]
[422479956,1778987441000,-500.0,0.00025,2]
[422479958,1778987441000,-500.0,0.00025,2]
[422479959,1778987441000,-500.0,0.00025,2]
[422479904,1778987441000,-195.443125,0.000249,2]
[422479942,1778987441000,-1404.23803,0.00025,2]
[422479943,1778987441000,-1404.23803,0.00025,2]
[422479962,1778987441000,-500.0,0.00025,2]
[422479928,1778987441000,-179.85,0.00025,2]
[422479932,1778987441000,-541.96263774,0.00025,5]
[422479897,1778987441000,-150.0,0.00024879,4]
[422479903,1778987441000,-195.443125,0.000249,2]
[422479898,1778987441000,-1105.18419788,0.00024899,10]
[422479900,1778987441000,-300.0,0.00024899,10]
[422479907,1778987441000,-167.528222,0.000249,2]
[422479906,1778987441000,-195.443125,0.000249,2]
[422479910,1778987441000,-167.528222,0.000249,2]
[422479908,1778987441000,-167.528222,0.000249,2]
[422479913,1778987441000,-151.0,0.000249,2]
[422479909,1778987441000,-167.528222,0.000249,2]
[422479912,1778987441000,-1404.23803,0.000249,2]
[422479914,1778987441000,-1404.23803,0.000249,2]
[422479916,1778987441000,-151.0,0.000249,2]
[422479901,1778987441000,-300.0,0.00024899,10]
[422479915,1778987441000,-1404.23803,0.000249,2]
[422479925,1778987441000,-300.0,0.00024999,10]
[422479927,1778987441000,-152.24247352,0.00025,2]
[422479926,1778987441000,-2000.0,0.00025,2]
[422479929,1778987441000,-179.86,0.00025,2]
[422479917,1778987441000,-700.0,0.000249,9]
[422479919,1778987441000,-150.0,0.00024901,4]
[422479922,1778987441000,-150.0,0.00024988,4]
[422479930,1778987441000,-7063.72083826,0.00025,21]
[422479924,1778987441000,-300.0,0.00024999,10]
[422479923,1778987441000,-1261.74940286,0.0002499,2]
[422479918,1778987441000,-151.0,0.000249,2]
[422479920,1778987441000,-150.0,0.00024935,4]
[422479911,1778987441000,-1404.23803,0.000249,2]
[422479921,1778987441000,-150.0,0.00024969,4]
[422480006,1778987442000,-500.0,0.00025,2]
[422480001,1778987442000,-500.0,0.00025,2]
[422480002,1778987442000,-500.0,0.00025,2]
[422479999,1778987442000,-500.0,0.00025,2]
[422480000,1778987442000,-500.0,0.00025,2]
[422479994,1778987442000,-500.0,0.00025,2]
[422479996,1778987442000,-500.0,0.00025,2]
[422480005,1778987442000,-500.0,0.00025,2]
[422480004,1778987442000,-500.0,0.00025,2]
[422479997,1778987442000,-592.735492,0.00025,2]
[422479992,1778987442000,-500.0,0.00025,2]
[422479998,1778987442000,-500.0,0.00025,2]
[422480007,1778987442000,-500.0,0.00025,2]
[422480011,1778987442000,-176.847513,0.00025,2]
[422480018,1778987442000,-500.0,0.00025,2]
[422480009,1778987442000,-500.0,0.00025,2]
[422480014,1778987442000,-500.0,0.00025,2]
[422480015,1778987442000,-500.0,0.00025,2]
[422480008,1778987442000,-500.0,0.00025,2]
[422480013,1778987442000,-500.0,0.00025,2]
[422480012,1778987442000,-500.0,0.00025,2]
[422480016,1778987442000,-500.0,0.00025,2]
[422480020,1778987442000,-500.0,0.00025,2]
[422480021,1778987442000,-500.0,0.00025,2]
[422480019,1778987442000,-176.847513,0.00025,2]
[422480024,1778987442000,-176.847513,0.00025,2]
[422479995,1778987442000,-500.0,0.00025,2]
[422480017,1778987442000,-592.735492,0.00025,2]
[422480003,1778987442000,-592.735492,0.00025,2]
[422479978,1778987442000,-500.0,0.00025,2]
[422479985,1778987442000,-500.0,0.00025,2]
[422480023,1778987442000,-500.0,0.00025,2]
[422479967,1778987442000,-500.0,0.00025,2]
[422479965,1778987442000,-500.0,0.00025,2]
[422479963,1778987442000,-500.0,0.00025,2]
[422479966,1778987442000,-500.0,0.00025,2]
[422479964,1778987442000,-500.0,0.00025,2]
[422479969,1778987442000,-500.0,0.00025,2]
[422479968,1778987442000,-500.0,0.00025,2]
[422479970,1778987442000,-500.0,0.00025,2]
[422479971,1778987442000,-500.0,0.00025,2]
[422479979,1778987442000,-500.0,0.00025,2]
[422479980,1778987442000,-500.0,0.00025,2]
[422479972,1778987442000,-500.0,0.00025,2]
[422479993,1778987442000,-500.0,0.00025,2]
[422479976,1778987442000,-500.0,0.00025,2]
[422479977,1778987442000,-500.0,0.00025,2]
[422479973,1778987442000,-500.0,0.00025,2]
[422479974,1778987442000,-500.0,0.00025,2]
[422479982,1778987442000,-500.0,0.00025,2]
[422479984,1778987442000,-500.0,0.00025,2]
[422479983,1778987442000,-500.0,0.00025,2]
[422479981,1778987442000,-500.0,0.00025,2]
[422479989,1778987442000,-500.0,0.00025,2]
[422479987,1778987442000,-500.0,0.00025,2]
[422479986,1778987442000,-500.0,0.00025,2]
[422479991,1778987442000,-500.0,0.00025,2]
[422479990,1778987442000,-500.0,0.00025,2]
[422479988,1778987442000,-500.0,0.00025,2]
[422479975,1778987442000,-500.0,0.00025,2]
[422480022,1778987442000,-500.0,0.00025,2]
[422480010,1778987442000,-592.735492,0.00025,2]
[422480030,1778987442000,-176.847513,0.00025,2]
[422480067,1778987442000,-636.76912385,0.00025099,2]
[422480058,1778987442000,-500.0,0.00025099,2]
[422480065,1778987442000,-500.0,0.00025099,2]
[422480061,1778987442000,-500.0,0.00025099,2]
[422480057,1778987442000,-150.0,0.00025072,4]
[422480062,1778987442000,-500.0,0.00025099,2]
[422480068,1778987442000,-476.1886123,0.00025099,2]
[422480060,1778987442000,-500.0,0.00025099,2]
[422480064,1778987442000,-377.02817999,0.00025099,2]
[422480059,1778987442000,-500.0,0.00025099,2]
[422480066,1778987442000,-500.0,0.00025099,2]
[422480074,1778987442000,-150.0,0.00025141,4]
[422480075,1778987442000,-150.0,0.0002516,4]
[422480063,1778987442000,-500.0,0.00025099,2]
[422480080,1778987442000,-150.0,0.00025248,4]
[422480069,1778987442000,-693.92257626,0.00025099,2]
[422480076,1778987442000,-150.0,0.00025175,4]
[422480078,1778987442000,-150.0,0.00025244,4]
[422480079,1778987442000,-150.0,0.00025248,4]
[422480077,1778987442000,-150.0,0.00025209,4]
[422480072,1778987442000,-150.0,0.00025125,4]
[422480073,1778987442000,-150.0,0.00025125,4]
[422480070,1778987442000,-205.69100266,0.00025099,2]
[422480082,1778987442000,-150.0,0.00025278,4]
[422480083,1778987442000,-150.0,0.00025289,4]
[422480081,1778987442000,-150.0,0.00025264,4]
[422480084,1778987442000,-150.0,0.00025312,4]
[422480086,1778987442000,-150.0,0.00025347,4]
[422480071,1778987442000,-150.0,0.00025107,4]
[422480056,1778987442000,-150.0,0.00025054,4]
[422480028,1778987442000,-500.0,0.00025,2]
[422480047,1778987442000,-151.0,0.00025,2]
[422480046,1778987442000,-2163.748438,0.00025,2]
[422480029,1778987442000,-500.0,0.00025,2]
[422480025,1778987442000,-500.0,0.00025,2]
[422480027,1778987442000,-500.0,0.00025,2]
[422480026,1778987442000,-500.0,0.00025,2]
[422480031,1778987442000,-210.259162,0.00025,2]
[422480043,1778987442000,-2163.748438,0.00025,2]
[422480044,1778987442000,-28154.0,0.00025,2]
[422480035,1778987442000,-151.0,0.00025,2]
[422480032,1778987442000,-151.0,0.00025,2]
[422480034,1778987442000,-151.0,0.00025,2]
[422480036,1778987442000,-151.0,0.00025,2]
[422480085,1778987442000,-245.33,0.00025325,2]
[422480038,1778987442000,-215.895752,0.00025,2]
[422480033,1778987442000,-151.0,0.00025,2]
[422480042,1778987442000,-2163.748438,0.00025,2]
[422480041,1778987442000,-215.895752,0.00025,2]
[422480049,1778987442000,-151.0,0.00025,2]
[422480051,1778987442000,-150.0,0.00025002,4]
[422480050,1778987442000,-151.0,0.00025,2]
[422480052,1778987442000,-150.0,0.00025002,4]
[422480055,1778987442000,-150.0,0.00025038,4]
[422480054,1778987442000,-272.06,0.0002503,2]
[422480053,1778987442000,-150.0,0.00025004,4]
[422480045,1778987442000,-2163.748438,0.00025,2]
[422480037,1778987442000,-151.0,0.00025,2]
[422480039,1778987442000,-215.895752,0.00025,2]
[422480040,1778987442000,-215.895752,0.00025,2]
[422480048,1778987442000,-151.0,0.00025,2]
[422480129,1778987443000,-150.0,0.00025587,4]
[422480128,1778987443000,-363.22,0.00025571,2]
[422480139,1778987443000,-150.0,0.00025655,4]
[422480131,1778987443000,-150.0,0.00025591,4]
[422480122,1778987443000,-5530.0,0.000255,3]
[422480117,1778987443000,-150.0,0.00025484,4]
[422480120,1778987443000,-150.0,0.00025495,4]
[422480121,1778987443000,-363.22,0.00025495,2]
[422480124,1778987443000,-150.0,0.00025548,4]
[422480114,1778987443000,-150.0,0.0002545,4]
[422480132,1778987443000,-272.06,0.00025612,2]
[422480123,1778987443000,-150.0,0.00025518,4]
[422480138,1778987443000,-363.22,0.00025648,2]
[422480153,1778987443000,-2000.0,0.00025761,2]
[422480142,1778987443000,-1362.0,0.00025694,5]
[422480135,1778987443000,-150.0,0.00025618,4]
[422480141,1778987443000,-150.0,0.0002569,4]
[422480136,1778987443000,-150.0,0.00025621,4]
[422480133,1778987443000,-150.0,0.00025618,4]
[422480143,1778987443000,-212.0,0.00025695,2]
[422480156,1778987443000,-2000.0,0.00025761,2]
[422480155,1778987443000,-2000.0,0.00025761,2]
[422480145,1778987443000,-150.0,0.00025724,4]
[422480144,1778987443000,-338.0,0.00025695,2]
[422480147,1778987443000,-150.0,0.00025741,4]
[422480146,1778987443000,-150.0,0.00025741,4]
[422480119,1778987443000,-150.0,0.00025495,4]
[422480140,1778987443000,-150.0,0.00025686,4]
[422480116,1778987443000,-150.0,0.00025475,4]
[422480105,1778987443000,-1450.0,0.00025377,2]
[422480126,1778987443000,-1151.82071657,0.00025571,2]
[422480151,1778987443000,-2000.0,0.00025761,2]
[422480093,1778987443000,-2000.0,0.0002536,2]
[422480092,1778987443000,-2000.0,0.0002536,2]
[422480088,1778987443000,-2000.0,0.0002536,2]
[422480089,1778987443000,-2000.0,0.0002536,2]
[422480087,1778987443000,-2000.0,0.0002536,2]
[422480091,1778987443000,-2000.0,0.0002536,2]
[422480094,1778987443000,-2000.0,0.0002536,2]
[422480097,1778987443000,-2000.0,0.0002536,2]
[422480095,1778987443000,-2000.0,0.0002536,2]
[422480098,1778987443000,-150.0,0.00025372,4]
[422480096,1778987443000,-2000.0,0.0002536,2]
[422480099,1778987443000,-150.0,0.00025372,4]
[422480118,1778987443000,-1000.0,0.00025494,7]
[422480100,1778987443000,-1450.0,0.00025377,2]
[422480101,1778987443000,-1450.0,0.00025377,2]